Cogmind - Beta 11.1 @@@ ROGUE MODE // 2022.12.15 @ 20:26:11 Player: Grimhilt Result: Core destroyed Performance ------------- Evolutions (1) 500 Regions Visited (2) 400 Robots Destroyed (35) 175 Value Destroyed (617) 617 Prototype IDs (1) 20 Alien Tech Used (0) 0 Bonus (0) 0 TOTAL SCORE: 1712 Bonus ------- None Cogmind --------- Core Integrity 0/400 Matter 233/300 Energy 68/100 System Corruption 0% Temperature Critical (822) Movement Hovering (180) Ox2 Location -9/Materials Parts ------- > --- POWER (1) -------- (None) > --- PROPULSION (3) --- Improved Hover Unit > --- UTILITY (3) ------ Medium Storage Unit Visual Processing Unit Signal Interpreter > --- WEAPON (2) ------- Particle Cannon Rocket Launcher > --- INVENTORY (10) --- Improved Ion Engine Improved Aluminum Leg Improved Aluminum Leg Medium Storage Unit Targeting Computer Improved Targeting Computer Shield Generator Beam Rifle Improved Medium Laser Improved Medium Laser Peak State ------------ > --- POWER ------------ Light Ion Engine > --- PROPULSION ------- Wheel Hover Unit Hover Unit > --- UTILITY ---------- Small Storage Unit Visual Processing Unit Signal Interpreter > --- WEAPON ----------- Improved Medium Laser Improved Medium Laser > --- INVENTORY -------- Improved Ion Engine Improved Aluminum Leg Improved Aluminum Leg High-capacity Battery Targeting Computer Improved Targeting Computer Shield Generator Assault Rifle [Rating: 15] Favorites ----------- Power Light Ion Engine Engine Light Ion Engine Propulsion Wheel Leg Aluminum Leg Wheel Wheel Hover Unit Hover Unit Flight Unit Flight Unit Utility Signal Interpreter Storage Small Storage Unit Processor Signal Interpreter Weapon Light Assault Rifle Energy Gun Medium Laser Energy Cannon Particle Cannon Ballistic Gun Light Assault Rifle Launcher Rocket Launcher Build | -11 -10 -9 ------- Run | Scr Mat Mat Slots Evolved 2 | . . 2 Power . | . . . Propulsion 1 | . . 1 Utility 1 | . . 1 Weapon . | . . . Parts Attached 38 | 8 12 18 Power 6 | 1 3 2 Engine 6 | 1 3 2 Core . | . . . Reactor . | . . . Propulsion 17 | 4 7 6 Treads . | . . . Leg 2 | 2 . . Wheel 7 | 2 5 . Hover 6 | . . 6 Flight 2 | . 2 . Utility 4 | 1 1 2 Device . | . . . Storage 2 | 1 . 1 Processor 2 | . 1 1 Hackware . | . . . Protection . | . . . Artifact . | . . . Weapon 11 | 2 1 8 Energy Gun 6 | 1 1 4 Energy Cannon 1 | . . 1 Ballistic Gun 3 | 1 . 2 Ballistic Cannon . | . . . Launcher 1 | . . 1 Special Weapon . | . . . Impact Weapon . | . . . Slashing Weapon . | . . . Piercing Weapon . | . . . Special Melee Weapon . | . . . Unidentified Prototypes 1 | . . 1 Parts Lost 4 | . . 4 Power 1 | . . 1 Propulsion 2 | . . 2 Utility . | . . . Weapon 1 | . . 1 Highest Loss Streak 2 | . . 2 To Critical Strikes . | . . . Average Slot Usage (%) 96 | . 98 95 Engine 12 | . 14 11 Wheel 16 | . 27 8 Hover 11 | . . 19 Storage 12 | . 14 11 Processor 18 | . 12 22 Energy Gun 12 | . 14 11 Ballistic Gun 11 | . 14 10 Naked Turns . | . . . Heaviest Build 24 | 13 13 24 Greatest Support 26 | 26 26 20 Greatest Overweight (x) 1 | . . 1 Average Overweight (x) . | . . . Largest Inventory Capacity 10 | 8 8 10 Average Capacity 8 | 6 8 8 Most Carried 10 | 5 8 10 Average Carried 7 | 2 7 8 Final Capacity 10 | 8 8 10 Final Carried 10 | 5 8 10 Class Distribution -------------------- 53% | Scavenger-Mutant 46% | Mutant Dominant Class ---------------- Mutant | -10/Materials Scavenger-Mutant | -9/Materials Resources | -11 -10 -9 ----------- Run | Scr Mat Mat Matter Collected 709 | 260 177 272 Remotely . | . . . Salvage Created 917 | 18 303 596 Parts 79 | 2 25 52 Haulers Intercepted 3 | . 2 1 Recyclers Shooed . | . . . Parts Field Recycled . | . . . Retrieved Matter . | . . . Parts Self-Destructed . | . . . Prevented . | . . . Kills | -11 -10 -9 ------- Run | Scr Mat Mat Combat Hostiles Destroyed 22 | . 10 12 Guns 21 | . 10 11 Cannons 1 | . . 1 Classes Destroyed 7 | 1 4 2 Worker 4 | 1 1 2 Hauler 3 | . 2 1 Operator 1 | . . 1 Watcher 5 | . 2 3 Swarmer 13 | . 9 4 Grunt 4 | . 1 3 Sentry 5 | . . 5 Best Kill Streak 7 | 1 7 5 Combat Bots Only 6 | . 6 4 Max Kills in Single Turn 2 | 1 2 2 Gunslinging 1 | . 1 . Exploded . | . . . Melee . | . . . Uniques/NPCs Destroyed . | . . . Combat | -11 -10 -9 -------- Run | Scr Mat Mat Damage Taken 1166 | . 166 1000 Core 476 | . 43 433 Absorbed by Shields . | . . . Core Remaining (%) 91 | 100 82 . Volleys Fired 100 | 2 35 63 Largest 2 | 2 2 2 Hottest 124 | 70 85 124 Shots Fired 191 | 4 70 117 Gun 174 | 4 70 100 Cannon 15 | . . 15 Launcher 2 | . . 2 Special . | . . . Kinetic 83 | 2 35 46 Thermal 106 | 2 35 69 Explosive 2 | . . 2 Electromagnetic . | . . . Robot Hit Streak 15 | 3 6 15 Robot Miss Streak 5 | . 3 5 Penetration Max . | . . . Secondary Targets 4 | . 2 2 Max Gunslinging Chain 1 | . 1 1 Shots Hit Robots 111 | 3 41 67 Core Hits 58 | 2 22 34 Critical Kills . | . . . Critical Parts Destroyed 1 | . . 1 Critical Strikes 8 | . 1 7 Burn 7 | . 1 6 Destroy 1 | . . 1 Melee Attacks . | . . . Impact . | . . . Slashing . | . . . Piercing . | . . . Sneak Attacks . | . . . Combat Hostiles . | . . . Follow-up Attacks . | . . . Damage Inflicted 1561 | 32 456 1073 Guns 1343 | 32 456 855 Cannons 121 | . . 121 Explosions 97 | . . 97 Melee . | . . . Ramming . | . . . Kinetic 481 | 6 155 320 Thermal 983 | 26 301 656 Explosive 97 | . . 97 Electromagnetic . | . . . Impact . | . . . Slashing . | . . . Piercing . | . . . Highest Corruption . | . . . Average Corruption . | . . . Corruption Purged . | . . . Corruption Blocked . | . . . Overload Shots . | . . . Overflow Damage 1 | . . 1 Projectiles 1 | . . 1 Explosions . | . . . Melee . | . . . Knockbacks . | . . . Impact . | . . . Kinetic . | . . . Secondary . | . . . Self-Inflicted Damage . | . . . Shots . | . . . Rammed . | . . . Targets Rammed . | . . . Kicked . | . . . Crushed . | . . . Highest Temperature 822 | 60 160 822 Average Temperature 117 | 35 51 160 Received Heat Transfer 192 | . . 192 Effects 17 | . . 17 Shutdowns 4 | . . 4 Energy Bleed 4 | . . 4 Matter Decay 1 | . . 1 Short Circuit 1 | . . 1 Damage (major) 3 | . . 3 Damage (core) 4 | . . 4 Siege Activations . | . . . Robots Corrupted . | . . . Combat Hostiles . | . . . Parts Fried . | . . . Impact Corruptions . | . . . Robots Melted . | . . . Combat Hostiles . | . . . Parts Melted 6 | . 1 5 Heat Transferred 2828 | 74 874 1880 Parts Sabotaged . | . . . Parts Stolen . | . . . Parts Stripped . | . . . Power Chain Reactions . | . . . Missiles Intercepted . | . . . Alert | -11 -10 -9 ------- Run | Scr Mat Mat Peak Influence 272 | 5 256 272 Initial 34 | . 3 34 Average 106 | . 102 123 Maximum Alert Level 1 | . 1 1 Low Security (%) 77 | 100 80 71 Level 1 22 | . 19 28 Level 2 . | . . . Level 3 . | . . . Level 4 . | . . . Level 5 . | . . . High Security . | . . . Max Security . | . . . Squads Dispatched 1 | . . 1 Investigation . | . . . Extermination . | . . . Reinforcement 1 | . . 1 Assault . | . . . Garrison . | . . . Intercept . | . . . Searches Triggered . | . . . Construction Impeded . | . . . Haulers Reinforced . | . . . Active Scanning Responses . | . . . Cargo Convoy Interrupts . | . . . Stealth | -11 -10 -9 --------- Run | Scr Mat Mat Distress Signals 3 | . 1 2 Communications Jammed . | . . . Distress Signals . | . . . Times Spotted 34 | . 14 20 Peak Tracking Total 6 | . 3 6 Tactical Retreats 1 | . . 1 Traps | -11 -10 -9 ------- Run | Scr Mat Mat Traps Triggered . | . . . Indirectly . | . . . Trap Hack Attempts . | . . . Triggered . | . . . Disarmed . | . . . Reprogrammed . | . . . Reused . | . . . Traps Extracted . | . . . Installed . | . . . Triggered . | . . . Machines | -11 -10 -9 ---------- Run | Scr Mat Mat Machines Disabled 2 | . . 2 Max in Single Turn 1 | . . 1 Machines Sabotaged . | . . . Garrisons Compromised . | . . . Overloaded Fab Kills . | . . . Hacking | -11 -10 -9 --------- Run | Scr Mat Mat Machines Accessed 3 | . 3 . Terminals 2 | . 2 . Fabricators . | . . . Repair Stations . | . . . Recycling Units 1 | . 1 . Scanalyzers . | . . . Garrison Access . | . . . Total Hacks 3 | . 3 . Successful 3 | . 3 . Failed . | . . . Catastrophic . | . . . Database Lockouts . | . . . Manual . | . . . Terminals 2 | . 2 . Fabricators . | . . . Repair Stations . | . . . Recycling Units 1 | . 1 . Scanalyzers . | . . . Garrison Access . | . . . Terminal Hacks 2 | . 2 . Record 2 | . 2 . Fabricator Hacks . | . . . Repair Station Hacks . | . . . Recycling Unit Hacks 1 | . 1 . Retrieve Matter 1 | . 1 . Scanalyzer . | . . . Garrison Access Hacks . | . . . Unauthorized Hacks . | . . . Terminals . | . . . Fabricators . | . . . Repair Stations . | . . . Recycling Units . | . . . Scanalyzers . | . . . Garrison Access . | . . . Data Cores Recovered . | . . . Used . | . . . Hacking Detections 1 | . 1 . Full Trace Events . | . . . Feedback Events . | . . . Feedback Blocked . | . . . Robot Schematics Acquired . | . . . Robots Built . | . . . Authchips . | . . . Time . | . . . Total Robot Build Rating . | . . . Part Schematics Acquired . | . . . Parts Built . | . . . Authchips . | . . . Time . | . . . Total Part Build Rating . | . . . Parts Repaired . | . . . Time . | . . . Parts Recycled . | . . . Recycled Matter . | . . . Retrieved Matter . | . . . Retrieved Components . | . . . Parts Scanalyzed . | . . . Part Schematics Acquired . | . . . Parts Damaged . | . . . Bothacking | -11 -10 -9 ------------ Run | Scr Mat Mat Used RIF Installer . | . . . Robots Hacked . | . . . Non-combat . | . . . Combat . | . . . Robot Hacks Applied . | . . . Relay Couplers Released . | . . . Fabnet Peak Effective % . | . . . Robots Rewired . | . . . Allies Hacked . | . . . Hacks Repelled . | . . . Allies | -11 -10 -9 -------- Run | Scr Mat Mat Total Allies . | . . . Largest Group . | . . . Highest-Rated Group . | . . . Highest-Rated Ally . | . . . Total Orders . | . . . Ally Attacks . | . . . Total Damage . | . . . Kills . | . . . Allies Corrupted . | . . . Allies Melted . | . . . Intel | -11 -10 -9 ------- Run | Scr Mat Mat Robot Analysis Total . | . . . Derelict Logs Recovered . | . . . Drone Launches . | . . . Drone Recoveries . | . . . Exploration | -11 -10 -9 ------------- Run | Scr Mat Mat Turns Passed 1595 | 116 619 860 Spaces Moved 1098 | 74 528 496 Core 6 | 6 . . Treads . | . . . Legs 45 | 45 . . Wheels 717 | 23 528 166 Hover 330 | . . 330 Flight . | . . . Fastest Speed 50 | 50 80 52 Average Speed 85 | 105 83 85 Slowest Speed 130 | 120 90 130 Overloaded Moves . | . . . Propulsion Burnouts . | . . . Robots Hopped . | . . . Cave-ins Triggered . | . . . Exploration Rate (%) 40 | 5 79 37 Regions Visited 2 Branch Regions . Pre-discovered Areas . | . . . Known Exits Taken 1 | . 1 . Unknown Exits Taken 1 | 1 . . Scrap Searched . | . . . Spaces Dug . | . . . Terrain Destroyed 14 | . . 14 Melee . | . . . Projectile 1 | . . 1 AOE 13 | . . 13 Terrain Rammed . | . . . Walls Destroyed . | . . . Machines Disabled . | . . . Actions | -11 -10 -9 --------- Run | Scr Mat Mat Total 1577 | 107 645 825 Wait 281 | 13 51 217 Move 1096 | 73 527 496 Hop . | . . . Pick Up 32 | 11 9 12 Fast Attach 4 | . 1 3 Attach 9 | 6 1 2 Detach . | . . . Swap 25 | 2 10 13 Drop 30 | . 11 19 Fire 100 | 2 35 63 Melee . | . . . Ram . | . . . Kick . | . . . Crush . | . . . Escape Stasis . | . . . Rewire . | . . . Trap . | . . . Miscellaneous . | . . . Route ------- -11/Scrapyard -10/Materials (discovered 3 exits: *Mat x2 / *Min) -9/Materials (discovered 2 exits: *Min / *Sto) History --------- Turn | Location | Event 15 | -11/Scrapyard | Discovered new exit (range 16) 117 | -11/Scrapyard | Entered Materials 313 | -10/Materials | Build established: Mutant 352 | -10/Materials | Discovered new exit (range 7) 451 | -10/Materials | Identified exit to Mines 477 | -10/Materials | Discovered new exit (range 12) 485 | -10/Materials | Identified exit to Materials 723 | -10/Materials | Discovered exit to Materials (range 15) 736 | -10/Materials | Entered another Materials area 736 | -9/Materials | Evolved 2 slots: Propulsion x1, Utility x1 876 | -9/Materials | Discovered new exit (range 13) 965 | -9/Materials | Identified exit to Storage 1032 | -9/Materials | Build established: Scavenger-Mutant 1369 | -9/Materials | Discovered new exit (range 9) 1373 | -9/Materials | Identified exit to Mines 1583 | -9/Materials | Core integrity fell below 50% 1587 | -9/Materials | Core integrity fell below 20% 1597 | -9/Materials | Core destroyed Last Messages --------------- 01571_ Electrolysis Chamber disabled. 01572_ Power failure, Imp. Ion Engine shutdown. 01573_ Hover Unit destroyed. 01574_ Overheating: Med. Storage Unit damaged (-153). 01574_ Overheating: Imp. Hover Unit damaged (-8). 01574_ Overheating: Signal Interpreter damaged (-11). 01582_ Overheating: Energy bleed (-19). 01583_ Power failure, Imp. Ion Engine shutdown. 01583_ Overheating: Core damaged (-56). 01584_ Overheating: Energy bleed (-10). 01586_ Overheating: Core damaged (-44). 01587_ Overheating: Core damaged (-48). 01589_ Signal Interpreter broken. 01589_ Overheating: Short circuit. 01591_ Power failure, Imp. Ion Engine shutdown. 01591_ Overheating: Matter decay (-40). 01592_ Imp. Ion Engine destroyed. 01594_ K-01 Serf destroyed. 01596_ U-05 Engineer lays Concrete. 01597_ Overheating: Core damaged (-80). Map ----- +----------------------------------------------------+ | ?????????????????????????????????????????????????? | | ?????????????????????????????????????????????????? | | ?????????????????????????????????????????????????? | | ?????????????????????????????????????????????????? | | ?????????????????????????????????????????????????? | | ?????????????????????????????????????????????????? | | ?????????????????????????????????????????????????? | | ?????????????????????????????????????????????????? | | ?????????????????????????????????????????????????? | | ?????????????????????????????????????????????????? | | ?????????????????????????????????????????????????? | | ?????????????????????????????????????????#######?? | | ?????????????????????????????????????????# #?? | | ?????????????????????????????????????????# #?? | | ???????????????????###########???######### #?? | | ???????????????????# """ """ #???# !!## #?? | | ???????????????????# """ """ #???# !!## #?? | | ???????????????????# """ """ #???# #### ##### | | ???????????????????# #???# #??# # | | ???????????????????# #???# #??# # ! | | ???????????????????# #????? ???# # | | ???????????????????# *=%= #????###+###??# # | | ### ???????????????# !%%*= #????# #### # | | ! # ??????## # ####+########## T # | | ?? + ##### ==%% "" + | | ???????# a u g =*@######### # | | ???????# %=% l#???????# ###### | | ???????# ^ * #???????### ###????# | | ???????######## " " #?????????# #??????# | | ??????????????## " #?????????# #??????# | | ???????????????### #?????????# #??????##+## | | ?????????????????# ###########+###????????? | | ?????????????????# """ # T = #????????? | | ?????????????????# u""" #!* [#????????? | | ?????????????????# """ # """ """ "" %#??###???? | | ?????????????????# /=""" """ """*##?# ???? | | ?????????????????# #=""" """ """ #?# #???? | | ?????????????????# ### ## #### ##??? | | ?????????????????# ###+################## #??? | | ?????????????????# # #??????? + T #??? | | ?????????????????# # #??????????#!%*#??? | | ?????????????????+ / #??????????##*##??? | | ?????????????????# # #???????????#%#???? | | ????????????????## ###########????????#### ##### | | ????????????????# "#???????????????#= | | ????????????????# ""#???????????????# ##+##### | | ????????????????# !!#???????????????#!# # | | ????????????????# > ""#???????????????#=#|= # | | ????????????????# !!#???????????????# # = # | | ????????????????# ""#???????????????#!#= # | +----------------------------------------------------+ Best States ------------- Heat Dissipation 28 Energy Generation 12 Energy Capacity 265 Matter Stores 300 Matter Capacity 300 Sight Range 18 Terrain Scan Density 10 Evasion (%) 55 Item Schematics ----------------- None Robot Schematics ------------------ None Fabricated ------------ Nothing Alien Tech Used ----------------- None Achievements -------------- None Challenges ------------ None Game ------ Seed CoolantHelicalTrap Manual? 0 Play Time 00:18:56 Cumulative 20.7 hours Start 2022.12.15 @ 20:09:32 End 2022.12.15 @ 20:26:11 Sessions 1 Manual Loads 0 Difficulty Rogue Special Mode None Game No. 37 Rogue 37 Adventurer 0 Explorer 0 Win Type - Total 0 Types 0/0/0/0/0/0/0/0/0 Lore% 25 Gallery% 24 Achievement% 19 Wizard Run 0 Options --------- ASCII 0 Keyboard 0 Movement Mouse Keybinds 0 Fullscreen 1 Font 18/SmallcapsGlow Map View 76x50 Tactical HUD 1 Map Filters NONE Filters NONE Steam 1 RUN: cb0f04c5-5ffb-4383-a700-741ae0d034b3